Cogmind - Beta 16 @@@ ROGUE MODE // 2025.12.10 @ 17:56:40 Player: EuleBlut Result: Destroyed by L-31 Rogue with Katana Performance ------------- Evolutions (0) 0 Regions Visited (4) 800 Robots Destroyed (12) 60 Value Destroyed (245) 245 Prototype IDs (0) 0 Alien Tech Used (0) 0 Bonus (0) 0 TOTAL SCORE: 1105 Bonus ------- None Cogmind --------- Core Integrity 0/250 Matter 152/300 Energy 234/250 System Corruption 0% Temperature Cool (2) Movement Rolling (90) Location -8/Recycling Parts ------- > --- POWER (1) -------- Ion Engine > --- PROPULSION (2) --- Wheel Compact Wheel > --- UTILITY (2) ------ Small Storage Unit Makeshift Thermal Plating > --- WEAPON (2) ------- EM Pulse Gun Rocket Launcher > --- INVENTORY (8) ---- Light Ion Engine Light Ion Engine Improved Heat Sink Light Assault Rifle Peak State ------------ > --- POWER ------------ Ion Engine > --- PROPULSION ------- Light Treads Light Treads > --- UTILITY ---------- Small Storage Unit Makeshift Thermal Plating > --- WEAPON ----------- Light Assault Rifle Grenade Launcher > --- INVENTORY -------- Light Ion Engine Light Ion Engine Wheel Compact Wheel Improved Heat Sink EM Pulse Gun Light Assault Rifle Rocket Launcher [Rating: 11] Favorites ----------- Power Ion Engine Engine Ion Engine Propulsion Light Treads Treads Light Treads Wheel Wheel Utility Small Storage Unit Storage Small Storage Unit Protection Makeshift Thermal Plating Weapon Light Assault Rifle Energy Gun EM Pulse Gun Ballistic Gun Light Assault Rifle Launcher Grenade Launcher Build | -11 -10 -10 -10 -8 ------- Run | Yrd Mat Min Sub Rec Slots Evolved . | . . . . . Power . | . . . . . Propulsion . | . . . . . Utility . | . . . . . Weapon . | . . . . . Parts Attached 13 | 8 . 2 2 1 Power 2 | 1 . 1 . . Engine 2 | 1 . 1 . . Core . | . . . . . Reactor . | . . . . . Propulsion 4 | 4 . . . . Treads 2 | 2 . . . . Leg . | . . . . . Wheel 2 | 2 . . . . Hover . | . . . . . Flight . | . . . . . Utility 2 | 1 . . 1 . Device . | . . . . . Storage 1 | 1 . . . . Processor . | . . . . . Hackware . | . . . . . Protection 1 | . . . 1 . Artifact . | . . . . . Weapon 5 | 2 . 1 1 1 Energy Gun 1 | . . . . 1 Energy Cannon . | . . . . . Ballistic Gun 2 | 2 . . . . Ballistic Cannon . | . . . . . Launcher 2 | . . 1 1 . Special Weapon . | . . . . . Impact Weapon . | . . . . . Slashing Weapon . | . . . . . Piercing Weapon . | . . . . . Special Melee Weapon . | . . . . . Unidentified Prototypes . | . . . . . Parts Lost 5 | . . 2 2 1 Power 1 | . . 1 . . Propulsion 1 | . . . 1 . Utility . | . . . . . Weapon 3 | . . 1 1 1 Highest Loss Streak 2 | . . 2 1 1 To Critical Strikes . | . . . . . Average Backups 6 | 2 4 7 7 5 Power 1 | . 1 1 2 2 Propulsion 1 | 1 2 2 1 . Utility . | . . 1 1 1 Weapon 2 | . . 3 2 2 Tool/Special . | . . . . . Unused Backups 4 | . . . . 4 Power 2 | . . . . 2 Propulsion . | . . . . . Utility 1 | . . . . 1 Weapon 1 | . . . . 1 Tool/Special . | . . . . . Average Slot Usage (%) 91 | . 85 81 98 96 Engine 13 | . 14 12 14 14 Treads 25 | . 28 28 23 . Wheel 2 | . . . 3 28 Storage 14 | . 14 14 14 14 Protection 6 | . . . 13 14 Ballistic Gun 19 | . 28 18 14 7 Launcher 8 | . . 7 14 14 Peak Build Rating 11 | 6 6 7 11 11 Average Rating 8 | 3 6 6 10 10 On Entrance 6 | . 6 6 7 11 Avg Prop Armor Cover (%) . | . . . . . Naked Turns . | . . . . . Heaviest Build 19 | 13 13 14 19 19 Greatest Support 40 | 40 40 40 40 26 Greatest Overweight (x) . | . . . . . Average Overweight (x) . | . . . . . Largest Inventory Capacity 8 | 8 8 8 8 8 Average Capacity 7 | 6 8 8 8 8 Most Carried 8 | 5 6 8 8 5 Average Carried 6 | 2 4 7 7 4 Final Capacity 8 | 8 8 8 8 8 Final Carried 8 | 3 6 8 5 4 Class Distribution -------------------- 100% | Mutant Dominant Class ---------------- Mutant | -10/Materials Mutant | -10/Mines Mutant | -10/Subcaves Mutant | -8/Recycling Resources | -11 -10 -10 -10 -8 ----------- Run | Yrd Mat Min Sub Rec Matter Collected 369 | 188 124 44 13 . Remotely . | . . . . . Salvage Created 493 | . 104 50 8 331 Parts 14 | . 4 3 . 7 Haulers Intercepted 1 | . . . . 1 Recyclers Shooed . | . . . . . Parts Field Recycled . | . . . . . Retrieved Matter . | . . . . . Parts Self-Destructed 6 | . . . 6 . Prevented . | . . . . . Parts Restored . | . . . . . Kills | -11 -10 -10 -10 -8 ------- Run | Yrd Mat Min Sub Rec Combat Hostiles Destroyed 10 | . 4 4 1 1 Guns 5 | . 4 1 . . AOE 5 | . . 3 1 1 Classes Destroyed 8 | . 2 1 2 3 Hauler 1 | . . . . 1 Recycler 1 | . . . . 1 Turret 1 | . . . 1 . Swarmer 6 | . 3 3 . . Grunt 1 | . 1 . . . Sentry 1 | . . . 1 . Hunter 1 | . . . . 1 Assembled 1 | . . 1 . . Best Kill Streak 3 | . 3 3 1 3 Combat Bots Only 3 | . 3 3 1 1 Max Kills in Single Turn 3 | . 2 3 1 2 Gunslinging 1 | . 1 . . . Exploded 3 | . . 3 1 1 Melee . | . . . . . Uniques/NPCs Destroyed . | . . . . . Combat | -11 -10 -10 -10 -8 -------- Run | Yrd Mat Min Sub Rec Hostile Shots Fired 102 | . 44 9 43 6 Missed 31 | . 12 3 16 . Hits 71 | . 32 6 27 6 Melee 7 | . . 5 . 2 Projectile 64 | . 32 1 27 4 AOE 4 | . . . . 4 Critical Strikes 1 | . . 1 . . Damage Taken 954 | . 344 165 213 232 Core 250 | . 114 7 23 106 Absorbed by Shields . | . . . . . Ignored by Resistances 25 | . . . 25 . Core Remaining (%) 100 | 100 . . . . Volleys Fired 28 | . 9 6 6 7 Largest 2 | . 2 2 2 2 Hottest 53 | . 40 50 53 53 Shots Fired 47 | . 18 10 11 8 Gun 35 | . 18 9 6 2 Cannon . | . . . . . Launcher 12 | . . 1 5 6 Special . | . . . . . Kinetic 34 | . 18 9 6 1 Thermal . | . . . . . Explosive 12 | . . 1 5 6 Electromagnetic 1 | . . . . 1 Robot Hit Streak 5 | . 5 3 5 1 Robot Miss Streak 4 | . 2 2 3 4 Penetration Max . | . . . . . Secondary Targets 1 | . 1 . . . Max Gunslinging Chain 1 | . 1 . . . Shots Hit Robots 26 | . 12 5 8 1 Core Hits 33 | . 8 7 5 13 Critical Kills . | . . . . . Critical Parts Destroyed . | . . . . . Critical Strikes . | . . . . . Melee Attacks . | . . . . . Impact . | . . . . . Slashing . | . . . . . Piercing . | . . . . . Sneak Attacks . | . . . . . Combat Hostiles . | . . . . . Follow-up Attacks . | . . . . . Damage Inflicted 797 | . 121 97 126 453 Guns 203 | . 121 49 33 . Cannons . | . . . . . Explosions 594 | . . 48 93 453 Melee . | . . . . . Ramming . | . . . . . Kinetic 203 | . 121 49 33 . Thermal . | . . . . . Explosive 594 | . . 48 93 453 Electromagnetic . | . . . . . Impact . | . . . . . Slashing . | . . . . . Piercing . | . . . . . Highest Corruption . | . . . . . Average Corruption . | . . . . . Corruption Purged . | . . . . . Corruption Blocked . | . . . . . Overload Shots . | . . . . . Overflow Damage 4 | . . . . 4 Projectiles . | . . . . . Explosions 4 | . . . . 4 Melee . | . . . . . Knockbacks . | . . . . . Impact . | . . . . . Kinetic . | . . . . . Secondary . | . . . . . Self-Inflicted Damage 19 | . . . . 19 Shots 1 | . . . . 1 Rammed . | . . . . . Targets Rammed . | . . . . . Kicked . | . . . . . Crushed . | . . . . . Highest Temperature 16 | . 9 10 6 16 Average Temperature 9 | . 9 7 6 10 Received Heat Transfer 288 | . 144 . 144 . Siege Activations . | . . . . . Martial Activations . | . . . . . Shielding Activations . | . . . . . Robots Disrupted . | . . . . . Combat Hostiles . | . . . . . Robots Corrupted . | . . . . . Combat Hostiles . | . . . . . Parts Fried . | . . . . . Impact Corruptions . | . . . . . Robots Melted . | . . . . . Combat Hostiles . | . . . . . Parts Melted . | . . . . . Heat Transferred . | . . . . . Parts Sabotaged . | . . . . . Parts Stolen . | . . . . . Parts Stripped . | . . . . . Power Chain Reactions . | . . . . . Alert | -11 -10 -10 -10 -8 ------- Run | Yrd Mat Min Sub Rec Maximum Alert Level . | . . . . . Low Security (%) 100 | 100 100 100 . 100 Level 1 . | . . . . . Level 2 . | . . . . . Level 3 . | . . . . . Level 4 . | . . . . . Level 5 . | . . . . . High Security . | . . . . . Max Security . | . . . . . Peak Influence 95 | . 95 74 . 59 Initial 15 | . . 15 . . Average 23 | . 25 28 . 23 Influence Increases 354 | . 131 74 70 79 Destroy 0b10 Robot/C 200 | . 80 60 40 20 Destroy 0b10 Robot/NC 35 | . . . . 35 Destroy Leader 30 | . 20 10 . . Successful Hack 16 | . 16 . . . Destroy Structure 28 | . . 4 . 24 Lose Combat Pursuer 45 | . 15 . 30 . Influence Decreases 295 | . 92 89 94 20 Entered New Map 37 | . . 24 13 . Time Decay 228 | . 92 65 61 10 Lost Part 30 | . . . 20 10 Squads Dispatched 1 | . 1 . . . Investigation 1 | . 1 . . . Extermination . | . . . . . Reinforcement . | . . . . . Assault . | . . . . . Garrison . | . . . . . Intercept . | . . . . . Searches Triggered . | . . . . . Construction Impeded . | . . . . . Haulers Reinforced . | . . . . . Active Scanning Responses . | . . . . . Cargo Convoy Interrupts . | . . . . . Stealth | -11 -10 -10 -10 -8 --------- Run | Yrd Mat Min Sub Rec Distress Signals 2 | . 1 1 . . Communications Jammed . | . . . . . Distress Signals . | . . . . . Times Spotted 24 | . 14 5 3 2 Peak Tracking Total 8 | . 8 3 1 2 Tactical Retreats 5 | . 1 2 2 . Traps | -11 -10 -10 -10 -8 ------- Run | Yrd Mat Min Sub Rec Traps Triggered 2 | . 1 . 1 . Indirectly . | . . . . . Trap Hack Attempts . | . . . . . Triggered . | . . . . . Disarmed . | . . . . . Reprogrammed . | . . . . . Reused . | . . . . . Traps Extracted . | . . . . . Installed . | . . . . . Triggered . | . . . . . Machines | -11 -10 -10 -10 -8 ---------- Run | Yrd Mat Min Sub Rec Machines Disabled . | . . . . . Max in Single Turn . | . . . . . Machines Repaired . | . . . . . Machines Dismantled . | . . . . . Machines Sabotaged . | . . . . . Overloaded Fab Kills . | . . . . . Hacking | -11 -10 -10 -10 -8 --------- Run | Yrd Mat Min Sub Rec Machines Accessed 3 | . 2 . 1 . Terminals 2 | . 2 . . . Fabricators . | . . . . . Repair Stations . | . . . . . Recycling Units . | . . . . . Scanalyzers . | . . . . . Garrison Access . | . . . . . Total Hacks 8 | . 5 . 3 . Successful 6 | . 3 . 3 . Failed 2 | . 2 . . . Catastrophic . | . . . . . Database Lockouts . | . . . . . Manual . | . . . . . Terminals 5 | . 5 . . . Fabricators . | . . . . . Repair Stations . | . . . . . Recycling Units . | . . . . . Scanalyzers . | . . . . . Garrison Access . | . . . . . Terminal Hacks 6 | . 3 . 3 . Record 6 | . 3 . 3 . Fabricator Hacks . | . . . . . Repair Station Hacks . | . . . . . Recycling Unit Hacks . | . . . . . Scanalyzer . | . . . . . Garrison Access Hacks . | . . . . . Unauthorized Hacks . | . . . . . Terminals . | . . . . . Fabricators . | . . . . . Repair Stations . | . . . . . Recycling Units . | . . . . . Scanalyzers . | . . . . . Garrison Access . | . . . . . Data Cores Recovered . | . . . . . Used . | . . . . . Hacking Detections 2 | . 2 . . . Full Trace Events 1 | . 1 . . . Feedback Events . | . . . . . Feedback Blocked . | . . . . . Robot Schematics Acquired . | . . . . . Robots Built . | . . . . . Authchips . | . . . . . Time . | . . . . . Total Robot Build Rating . | . . . . . Part Schematics Acquired . | . . . . . Parts Built . | . . . . . Authchips . | . . . . . Time . | . . . . . Total Part Build Rating . | . . . . . Part Studies Acquired . | . . . . . Parts Repaired . | . . . . . Time . | . . . . . Parts Recycled . | . . . . . Recycled Matter . | . . . . . Retrieved Matter . | . . . . . Retrieved Components . | . . . . . Parts Scanalyzed . | . . . . . Part Schematics Acquired . | . . . . . Parts Damaged . | . . . . . Bothacking | -11 -10 -10 -10 -8 ------------ Run | Yrd Mat Min Sub Rec Used RIF Installer . | . . . . . Robots Hacked . | . . . . . Non-combat . | . . . . . Combat . | . . . . . Robot Hacks Applied . | . . . . . Relay Couplers Released . | . . . . . Fabnet Peak Effective % . | . . . . . Robots Rewired . | . . . . . Allies Hacked . | . . . . . Hacks Repelled . | . . . . . Allies | -11 -10 -10 -10 -8 -------- Run | Yrd Mat Min Sub Rec Total Allies . | . . . . . Largest Group . | . . . . . Highest-Rated Group . | . . . . . Highest-Rated Ally . | . . . . . Total Orders . | . . . . . Ally Attacks . | . . . . . Total Damage . | . . . . . Kills . | . . . . . Allies Corrupted . | . . . . . Allies Melted . | . . . . . Intel | -11 -10 -10 -10 -8 ------- Run | Yrd Mat Min Sub Rec Active Infowar (turns) . | . . . . . Robot Analysis Total . | . . . . . Derelict Logs Recovered . | . . . . . Drone Launches . | . . . . . Drone Recoveries . | . . . . . Exploration | -11 -10 -10 -10 -8 ------------- Run | Yrd Mat Min Sub Rec Turns Passed 1389 | 65 472 176 649 27 Spaces Moved 850 | 36 278 98 425 13 Core 3 | 3 . . . . Treads 746 | 24 278 98 346 . Legs . | . . . . . Wheels 101 | 9 . . 79 13 Hover . | . . . . . Flight . | . . . . . Fastest Speed 50 | 50 160 160 90 90 Average Speed 151 | 133 160 160 146 90 Slowest Speed 160 | 160 160 160 160 90 Overloaded Moves . | . . . . . Propulsion Burnouts . | . . . . . Robots Hopped . | . . . . . Potential Cave-ins . | . . . . . Cave-ins Triggered . | . . . . . Exploration Rate (%) 19 | 3 47 21 20 7 Regions Visited 4 Branch Regions 3 Pre-discovered Areas . | . . . . . Known Exits Taken . | . . . . . Unknown Exits Taken 4 | 1 1 1 1 . Scrap Searched . | . . . . . Spaces Dug . | . . . . . Terrain Destroyed 56 | . . 4 21 31 Melee . | . . . . . Projectile . | . . . . . AOE 56 | . . 4 21 31 Terrain Rammed . | . . . . . Walls Destroyed . | . . . . . Machines Disabled . | . . . . . Actions | -11 -10 -10 -10 -8 --------- Run | Yrd Mat Min Sub Rec Total 912 | 54 289 109 439 21 Wait 4 | . . . 4 . Move 846 | 35 277 97 424 13 Hop . | . . . . . Pick Up 16 | 9 3 4 . . Fast Attach 1 | . . . 1 . Attach 14 | 8 . 2 3 1 Detach 2 | 2 . . . . Swap . | . . . . . Drop 1 | . . . 1 . Fire 28 | . 9 6 6 7 Melee . | . . . . . Ram . | . . . . . Kick . | . . . . . Crush . | . . . . . Escape Stasis . | . . . . . Rewire . | . . . . . Trap . | . . . . . Miscellaneous . | . . . . . Route ------- -11/Scrapyard -10/Materials (discovered 3 exits: [*Mat x2] / [*Min]) -10/Mines -10/Subcaves -8/Recycling History --------- Turn | Location | Event 13 | -11/Scrapyard | Discovered new exit (range 14) 66 | -11/Scrapyard | Entered Materials 295 | -10/Materials | Discovered new exit (range 5) 314 | -10/Materials | Build established: Mutant 388 | -10/Materials | Discovered new exit (range 11) 514 | -10/Materials | Discovered new exit (range 14) 538 | -10/Materials | Entered Mines 549 | -10/Mines | Assembled infested the area 564 | -10/Mines | Received a Rocket Launcher from a helpful Derelict 692 | -10/Mines | Discovered new exit (range 10) 714 | -10/Mines | Entered Subcaves 716 | -10/Subcaves | Shifting Twisted Machinery released Mak. Thermal Plating 903 | -10/Subcaves | Visited Clippyterm 908 | -10/Subcaves | Learned Research machine intel 1160 | -10/Subcaves | Shifting Twisted Machinery released Sub. Machine Gun 1272 | -10/Subcaves | Core integrity fell below 50% 1278 | -10/Subcaves | Discovered new exit (range 14) 1316 | -10/Subcaves | A swath of the cavern ceiling suddenly collapsed 1363 | -10/Subcaves | Entered Recycling 1364 | -8/Recycling | Met a Zionite searching for Scraptown 1379 | -8/Recycling | Core integrity fell below 20% 1390 | -8/Recycling | Destroyed by L-31 Rogue with Katana Last Messages --------------- 4I-CK4(z): "Anyway I've been here searching too long already, time to slink back to the caves before I'm caught. You'd best do the same." D-53 Grenadier springs to life. G-47 Trooper destroyed. H-55 Commando destroyed. S-10 Pest destroyed. Destroyed Com. Wheel. Lgt. Assault Rifle destroyed. 4I-CK4(z) destroyed. L-31 Rogue destroyed. R-06 Scavenger destroyed. L-31 Rogue springs to life. I-25 Savior destroyed. D-53 Grenadier destroyed. H-55 Commando destroyed. A-02 Transporter destroyed. The unstable cave ceiling collapses. R-06 Scavenger destroyed. The unstable cave ceiling collapses. Map ----- +----------------------------------------------------+ | ?????????????????????????????????????????????? | | ?????????????????????????????????????????????? | | ?????????????????????????????????????????????? | | ?????????????????????????????????????????????? | | ?????????????????????????????????????????????? | | ?????????????????????????????????????????????? | | ?????????????????????????????????????????????? | | ?????????????????????????????????????????????? | | ???????????????????? ??????????????????????? | | ??????????????????? ??????????????????????? | | ??????????????????? ??#???????????????????? | | ???????????????????# ?# #####??????????????? | | ???????????????????# # ###????????????? | | ?????????????????### #*#????????????? | | ?????????????? ? # %%##???????????? | | ?????????????? ?+ ! #???????????? | | ????????????? # [ ] #???????????? | | ????????????? # % #???????????? | | ???????????? % !% #???????????? | | ???????????? # ==% ##???????????? | | ????????????? *% [ %#????????????? | | ??????????????? = %#????????????? | | ????????????????? % #????????????? | | ???????????????????# % Y #????????????? | | ???????????????????# l =%= #????????????? | | ???????????????????# @ #????????????? | | ???????????????????# #????????????? | | ???????????????????# ![#????????????? | | ???????????????????# ! g #????????????? | | ???????????????????# # ! #????????????? | | ???????????????????# # ! #????????????? | | ???????????????????##### l% #????????????? | | ???????????????????????##########????????????? | | ?????????????????????????????????????????????? | | ?????????????????????????????????????????????? | | ?????????????????????????????????????????????? | | ?????????????????????????????????????????????? | | ?????????????????????????????????????????????? | | ?????????????????????????????????????????????? | | ?????????????????????????????????????????????? | | | | | | | | | | | | | | | | | | | | | +----------------------------------------------------+ Best States ------------- Heat Dissipation 25 Energy Generation 10 Energy Capacity 250 Matter Stores 300 Matter Capacity 300 Sight Range 16 Terrain Scan Density 10 Armor Coverage 100 Resistance: TH 10 Evasion (%) 42 Recoil Reduction 2 Item Schematics ----------------- None Robot Schematics ------------------ None Fabricated ------------ Nothing Repaired ---------- Nothing Studied --------- None Alien Tech Used ----------------- None Achievements -------------- I Survived The Infestation Challenges ------------ None Game ------ Seed SchematicCooledMegatreads Manual? 0 Play Time 00:10:59 Cumulative 4.8 hours Start 2025.12.10 @ 17:45:37 End 2025.12.10 @ 17:56:40 Sessions 1 Manual Loads 0 Difficulty Rogue Special Mode None Game No. 13 Rogue 12 Adventurer 0 Explorer 1 Win Type - Total 0 Types 0/0/0/0/0/0/0/0/0/0 Lore% 8 Gallery% 8 Achievement% 9 Wizard Run 0 Options --------- Layout 1 ASCII 0 Keyboard 0 Movement Mouse Keybinds 0 Fullscreen 2 Font 24/Smallcaps Map View 50x35 Zoom Use 9% Tactical HUD 0 Map Filters NONE Filters NONE Steam 1 RUN: 9ce324a9-9a0a-4de1-b6b1-9e4774c47345